fUSD/lending_fUSD_20241220
["ID","MTS","AMOUNT","RATE_DAILY","PERIOD"]
[346111460,1734708641485,-500.0,0.00022191,4]
[346111461,1734708641494,-500.0,0.00022191,4]
[346111462,1734708641504,-500.0,0.00022191,4]
[346111463,1734708641514,-500.0,0.00022191,4]
[346111464,1734708641525,-500.0,0.00022191,4]
[346111465,1734708641534,-500.0,0.00022191,4]
[346111466,1734708641544,-506.5,0.00022191,4]
[346111467,1734708641558,-500.0,0.00022191,2]
[346111468,1734708641568,-500.0,0.00022191,4]
[346111469,1734708641578,-500.0,0.00022191,4]
[346111470,1734708641589,-446.46,0.00022191,4]
[346111471,1734708641599,-500.0,0.00022191,4]
[346111472,1734708641609,-500.0,0.00022191,4]
[346111473,1734708641619,-500.0,0.00022191,4]
[346111474,1734708641629,-500.0,0.00022191,4]
[346111475,1734708641638,-500.0,0.00022191,4]
[346111476,1734708641648,-500.0,0.00022191,4]
[346111477,1734708641657,-500.0,0.00022191,4]
[346111478,1734708641667,-500.0,0.00022191,4]
[346111479,1734708641677,-500.0,0.00022191,4]
[346111480,1734708641688,-500.0,0.00022191,4]
[346111481,1734708641699,-500.0,0.00022191,4]
[346111482,1734708641710,-500.0,0.00022191,4]
[346111483,1734708641721,-500.0,0.00022191,4]
[346111484,1734708641733,-500.0,0.00022191,4]
[346111485,1734708641744,-500.0,0.00022191,4]
[346111486,1734708641754,-527.4,0.00022191,4]
[346111487,1734708641766,-644.44,0.00022191,4]
[346111488,1734708641777,-1110.94,0.00022191,4]
[346111489,1734708641787,-943.11,0.00022191,4]
[346111490,1734708641798,-631.39,0.00022191,4]
[346111491,1734708641815,-1228.25,0.00022191,4]
[346111492,1734708641826,-743.84,0.00022191,4]
[346111493,1734708641837,-500.0,0.00022191,4]
[346111494,1734708641847,-500.0,0.00022191,4]
[346111495,1734708641858,-500.0,0.00022191,4]
[346111496,1734708641869,-500.0,0.00022191,4]
[346111497,1734708641880,-4830.56,0.00022191,4]
[346111498,1734708641891,-672.72,0.00022191,4]
[346111499,1734708641903,-500.0,0.00022191,4]
[346111500,1734708641913,-500.0,0.00022191,4]
[346111501,1734708641925,-518.05,0.00022191,4]
[346111502,1734708641936,-500.0,0.00022191,4]
[346111503,1734708641947,-500.0,0.00022191,4]
[346111504,1734708641958,-500.0,0.00022191,4]
[346111505,1734708641972,-500.0,0.00022191,4]
[346111506,1734708641983,-989.78,0.00022191,4]
[346111507,1734708641994,-500.0,0.00022191,4]
[346111508,1734708642005,-500.0,0.00022191,4]
[346111509,1734708642016,-177.73,0.00022191,4]
[346111510,1734708642026,-1000.0,0.00022238,2]
[346111511,1734708642036,-1082.07620488,0.00022284,2]
[346111512,1734708642047,-103822.7483,0.00022365,2]
[346111513,1734708642061,-150.0,0.000224,4]
[346111514,1734708642073,-500.0,0.00022464,4]
[346111515,1734708642083,-500.0,0.00022464,4]
[346111516,1734708642093,-329.10304421,0.00022464,4]
[346111517,1734708642104,-500.0,0.00022464,4]
[346111518,1734708642115,-500.0,0.00022464,4]
[346111519,1734708642125,-500.0,0.00022464,4]
[346111520,1734708642136,-500.0,0.00022464,4]
[346111521,1734708642145,-500.0,0.00022464,4]
[346111522,1734708642155,-500.0,0.00022464,4]
[346111523,1734708642165,-500.0,0.00022464,4]
[346111524,1734708642176,-324.16059558,0.00022464,4]
[346111525,1734708642186,-500.0,0.00022464,4]
[346111526,1734708642196,-500.0,0.00022464,4]
[346111527,1734708642206,-500.0,0.00022464,4]
[346111528,1734708642216,-500.0,0.00022464,4]
[346111529,1734708642226,-500.0,0.00022464,4]
[346111530,1734708642236,-500.0,0.00022464,4]
[346111531,1734708642246,-479.88866561,0.00022464,4]
[346111532,1734708642257,-500.0,0.00022464,4]
[346111533,1734708642267,-500.0,0.00022464,4]
[346111534,1734708642277,-500.0,0.00022464,4]
[346111535,1734708642288,-500.0,0.00022464,4]
[346111536,1734708642298,-500.0,0.00022464,4]
[346111537,1734708642313,-500.0,0.00022464,4]
[346111538,1734708642323,-500.0,0.00022464,4]
[346111539,1734708642334,-500.0,0.00022464,4]
[346111540,1734708642344,-500.0,0.00022464,4]
[346111541,1734708642356,-500.54975752,0.00022464,4]
[346111542,1734708642367,-500.47080659,0.00022464,4]
[346111543,1734708642379,-613.58,0.00022464,4]
[346111544,1734708642389,-500.0,0.00022464,4]
[346111545,1734708642402,-500.0,0.00022464,4]
[346111546,1734708642412,-500.624301,0.00022464,4]
[346111547,1734708642423,-604.47882322,0.00022464,4]
[346111548,1734708642433,-500.0,0.00022464,4]
[346111549,1734708642444,-500.0,0.00022464,4]
[346111550,1734708642454,-500.0,0.00022464,4]
[346111551,1734708642465,-500.0,0.00022464,4]
[346111552,1734708642476,-500.0,0.00022464,4]
[346111553,1734708642487,-516.61474241,0.00022464,4]
[346111554,1734708642497,-500.0,0.00022464,4]
[346111555,1734708642508,-502.23078222,0.00022464,4]
[346111556,1734708642518,-501.66838124,0.00022464,4]
[346111557,1734708642529,-500.0,0.00022464,4]
[346111558,1734708642539,-500.0,0.00022464,4]
[346111559,1734708642550,-503.29520106,0.00022464,4]
[346111560,1734708642565,-500.0,0.00022464,4]
[346111561,1734708642576,-500.0,0.00022464,4]
[346111562,1734708642587,-156.913729,0.00022464,4]
[346111563,1734708642598,-500.0,0.00022464,4]
[346111564,1734708642608,-500.0,0.00022464,4]
[346111565,1734708642619,-500.0,0.00022464,4]
[346111566,1734708642629,-500.0,0.00022464,4]
[346111567,1734708642641,-500.0,0.00022464,4]
[346111568,1734708642652,-500.0,0.00022464,4]
[346111569,1734708642663,-515.34638767,0.00022464,4]
[346111570,1734708642674,-500.0,0.00022464,4]
[346111571,1734708642685,-500.0,0.00022464,4]
[346111572,1734708642696,-500.0,0.00022464,4]
[346111573,1734708642707,-500.0,0.00022464,4]
[346111574,1734708642718,-500.0,0.00022464,4]
[346111576,1734708642729,-500.0,0.00022464,4]
[346111578,1734708642740,-500.0,0.00022464,4]
[346111579,1734708642752,-500.0,0.00022464,4]
[346111581,1734708642764,-500.0,0.00022464,4]
[346111583,1734708642775,-500.0,0.00022464,4]
[346111584,1734708642786,-500.0,0.00022464,4]
[346111585,1734708642797,-500.0,0.00022464,4]
[346111586,1734708642810,-500.0,0.00022464,4]
[346111587,1734708642821,-500.0,0.00022464,4]
[346111588,1734708642832,-582.29,0.00022464,4]
[346111589,1734708642844,-511.78,0.00022464,4]
[346111590,1734708642858,-175.6,0.00022464,4]
[346111591,1734708642869,-593.54356143,0.00022464,4]
[346111592,1734708642881,-800.89,0.00022464,4]
[346111593,1734708642893,-500.0,0.00022464,4]
[346111594,1734708642904,-751.77,0.00022464,4]
[346111595,1734708642915,-500.0,0.00022464,4]
[346111596,1734708642926,-1476.34,0.00022464,4]
[346111597,1734708642936,-500.0,0.00022464,4]
[346111598,1734708642946,-500.0,0.00022464,4]
[346111600,1734708642958,-994.91,0.00022464,4]
[346111602,1734708642969,-500.0,0.00022464,4]
[346111604,1734708642981,-500.0,0.00022464,4]
[346111605,1734708642992,-500.0,0.00022464,4]
[346111606,1734708643004,-500.0,0.00022464,4]
[346111608,1734708643015,-820.85,0.00022464,4]
[346111610,1734708643027,-1568.07,0.00022464,4]
[346111612,1734708643039,-514.24,0.00022464,4]
[346111615,1734708643054,-500.0,0.00022464,4]
[346111618,1734708643065,-821.18,0.00022464,4]
[346111623,1734708643078,-500.0,0.00022464,4]
[346111626,1734708643090,-266.70521791,0.00022464,4]
[346111629,1734708643101,-500.0,0.00022464,4]
[346111633,1734708643112,-500.0,0.00022464,4]
[346111637,1734708643123,-500.0,0.00022464,4]
[346111640,1734708643133,-568.89,0.00022464,4]
[346111642,1734708643143,-500.0,0.00022464,4]
[346111645,1734708643153,-500.0,0.00022464,4]
[346111648,1734708643164,-500.0,0.00022464,4]
[346111653,1734708643176,-685.14,0.00022464,4]
[346111657,1734708643188,-507.43,0.00022464,4]
[346111661,1734708643199,-864.14,0.00022464,4]
[346111664,1734708643211,-500.0,0.00022464,4]
[346111668,1734708643223,-500.0,0.00022464,4]
[346111671,1734708643234,-765.98,0.00022464,4]
[346111674,1734708643246,-500.0,0.00022464,4]
[346111676,1734708643258,-1025.07,0.00022464,4]
[346111678,1734708643270,-728.54,0.00022464,4]
[346111681,1734708643282,-500.0,0.00022464,4]
[346111683,1734708643294,-500.0,0.00022464,4]
[346111685,1734708643309,-508.74,0.00022464,4]
[346111686,1734708643320,-500.0,0.00022464,4]
[346111687,1734708643331,-3628.92,0.00022464,4]
[346111688,1734708643343,-832.7,0.00022464,4]
[346111689,1734708643357,-500.0,0.00022464,4]
[346111690,1734708643368,-500.0,0.00022464,4]
[346111691,1734708643380,-500.0,0.00022464,4]
[346111692,1734708643392,-1222.31,0.00022464,4]
[346111693,1734708643405,-500.0,0.00022464,4]
[346111694,1734708643416,-500.0,0.00022464,4]
[346111695,1734708643427,-1245.95,0.00022464,4]
[346111696,1734708643438,-601.16,0.00022464,4]
[346111697,1734708643450,-628.16,0.00022464,4]
[346111698,1734708643461,-500.0,0.00022464,4]
[346111699,1734708643472,-500.0,0.00022464,4]
[346111700,1734708643483,-997.76,0.00022464,4]
[346111701,1734708643494,-500.0,0.00022464,4]
[346111702,1734708643507,-4338.76,0.00022464,4]
[346111703,1734708643518,-500.0,0.00022464,4]
[346111704,1734708643529,-500.0,0.00022464,4]
[346111705,1734708643540,-500.0,0.00022464,4]
[346111706,1734708643550,-500.0,0.00022464,4]
[346111707,1734708643563,-602.56,0.00022464,4]
[346111708,1734708643574,-500.0,0.00022464,4]
[346111709,1734708643584,-4322.79,0.00022464,4]
[346111710,1734708643595,-643.35,0.00022464,4]
[346111711,1734708643605,-757.49,0.00022464,4]
[346111712,1734708643616,-500.0,0.00022464,4]
[346111713,1734708643628,-926.41,0.00022464,4]
[346111714,1734708643639,-1635.36,0.00022464,4]
[346111715,1734708643652,-500.0,0.00022464,4]
[346111717,1734708643664,-764.22,0.00022464,4]
[346111719,1734708643675,-500.0,0.00022464,4]
[346111720,1734708643685,-500.0,0.00022464,4]
[346111721,1734708643695,-500.0,0.00022464,4]
[346111722,1734708643705,-500.0,0.00022464,4]
[346111723,1734708643715,-1000.0,0.00022464,4]
[346111724,1734708643725,-517.74,0.00022464,4]
[346111725,1734708643735,-1796.74,0.00022464,4]
[346111726,1734708643746,-500.0,0.00022464,4]
[346111727,1734708643758,-500.0,0.00022464,4]
[346111728,1734708643769,-2191.15,0.00022464,4]
[346111729,1734708643781,-500.0,0.00022464,4]
[346111730,1734708643792,-1575.91,0.00022464,4]
[346111731,1734708643803,-500.0,0.00022464,4]
[346111732,1734708643814,-1376.54,0.00022464,4]
[346111733,1734708643824,-708.87,0.00022464,4]
[346111734,1734708643834,-500.0,0.00022464,4]
[346111735,1734708643845,-500.0,0.00022464,4]
[346111736,1734708643855,-500.0,0.00022464,4]
[346111737,1734708643866,-523.07,0.00022464,4]
[346111738,1734708643876,-240.92008261,0.00022464,4]
[346111739,1734708643887,-500.0,0.00022464,4]
[346111740,1734708643897,-1072.88,0.00022464,4]
[346111741,1734708643908,-500.0,0.00022464,4]
[346111742,1734708643919,-500.0,0.00022464,4]
[346111743,1734708643929,-500.0,0.00022464,4]
[346111744,1734708643940,-744.56,0.00022464,4]
[346111745,1734708643950,-500.0,0.00022464,4]
[346111746,1734708643961,-476.17992648,0.00022464,4]
[346111747,1734708643972,-500.0,0.00022464,4]
[346111748,1734708643983,-519.52,0.00022464,4]
[346111749,1734708643994,-500.0,0.00022464,4]
[346111750,1734708644005,-546.74,0.00022464,4]
[346111751,1734708644016,-784.97,0.00022464,4]
[346111752,1734708644027,-500.0,0.00022464,4]
[346111753,1734708644038,-610.51,0.00022464,4]
[346111754,1734708644049,-500.0,0.00022465,4]
[346111755,1734708644061,-500.0,0.00022465,4]
[346111756,1734708644071,-500.0,0.00022465,4]
[346111757,1734708644082,-500.0,0.00022465,4]
[346111758,1734708644093,-191.24405618,0.00022465,4]
[346111759,1734708644104,-500.0,0.00022465,4]
[346111760,1734708644115,-500.0,0.00022465,4]
[346111761,1734708644125,-500.0,0.00022465,4]
[346111762,1734708644136,-500.0,0.00022465,4]
[346111763,1734708644146,-500.0,0.00022465,4]
[346111764,1734708644157,-500.0,0.00022465,4]
[346111765,1734708644167,-500.0,0.00022465,4]
[346111766,1734708644178,-500.0,0.00022465,4]
[346111767,1734708644189,-500.0,0.00022465,4]
[346111768,1734708644199,-500.0,0.00022465,4]
[346111769,1734708644209,-540.95,0.00022465,4]
[346111770,1734708644219,-500.0,0.00022465,4]
[346111771,1734708644230,-500.0,0.00022465,4]
[346111772,1734708644241,-500.0,0.00022465,4]
[346111773,1734708644251,-500.0,0.00022465,4]
[346111774,1734708644262,-500.0,0.00022465,4]
[346111775,1734708644273,-500.0,0.00022465,4]
[346111776,1734708644284,-506.5,0.00022465,4]
[346111777,1734708644295,-500.0,0.00022465,2]
[346111778,1734708644308,-500.0,0.00022465,4]
[346111779,1734708644321,-500.0,0.00022465,4]
[346111780,1734708644331,-325.22,0.00022465,4]
[346111781,1734708644342,-500.0,0.00022465,4]
[346111782,1734708644354,-500.0,0.00022465,4]
[346111783,1734708644365,-500.0,0.00022465,4]
[346111784,1734708644375,-500.0,0.00022465,4]
[346111785,1734708644386,-500.0,0.00022465,4]
[346111786,1734708644398,-500.0,0.00022465,4]
[346111787,1734708644408,-500.0,0.00022465,4]
[346111788,1734708644418,-500.0,0.00022465,4]
[346111789,1734708644429,-500.0,0.00022465,4]
[346111790,1734708644440,-500.0,0.00022465,4]
[346111791,1734708644451,-500.0,0.00022465,4]
[346111792,1734708644460,-500.0,0.00022465,4]
[346111793,1734708644471,-500.0,0.00022465,4]
[346111794,1734708644481,-500.0,0.00022465,4]
[346111795,1734708644491,-527.4,0.00022465,4]
[346111796,1734708644502,-644.44,0.00022465,4]
[346111797,1734708644512,-1110.94,0.00022465,4]
[346111798,1734708644522,-943.11,0.00022465,4]
[346111799,1734708644532,-631.39,0.00022465,4]
[346111800,1734708644543,-1228.25,0.00022465,4]
[346111801,1734708644553,-743.84,0.00022465,4]
[346111802,1734708644564,-500.0,0.00022465,4]
[346111803,1734708644574,-500.0,0.00022465,4]
[346111804,1734708644585,-500.0,0.00022465,4]
[346111805,1734708644595,-500.0,0.00022465,4]
[346111806,1734708644605,-4830.56,0.00022465,4]
[346111807,1734708644616,-672.72,0.00022465,4]
[346111808,1734708644626,-500.0,0.00022465,4]
[346111809,1734708644637,-500.0,0.00022465,4]
[346111810,1734708644647,-518.05,0.00022465,4]
[346111811,1734708644658,-630.10178709,0.00022465,4]
[346111812,1734708644669,-500.0,0.00022465,4]
[346111813,1734708644679,-500.0,0.00022465,4]
[346111814,1734708644690,-500.0,0.00022465,4]
[346111815,1734708644702,-989.78,0.00022465,4]
[346111816,1734708644713,-500.0,0.00022465,4]
[346111817,1734708644724,-500.0,0.00022465,4]
[346111818,1734708644734,-1136.48608338,0.0002254,2]
[346111819,1734708644744,-1048.11140425,0.0002254,2]
[346111820,1734708644755,-990.34,0.00022554,2]
[346111821,1734708644766,-200.0,0.00022585,2]
[346111822,1734708644776,-665.65,0.000227,2]
[346111823,1734708644787,-180.07,0.00022705,2]
[346111824,1734708644797,-480.47118993,0.00022738,4]
[346111825,1734708644811,-500.0,0.00022738,4]
[346111826,1734708644822,-224.27826433,0.00022738,4]
[346111827,1734708644833,-500.0,0.00022738,4]
[346111828,1734708644843,-500.0,0.00022738,4]
[346111829,1734708644853,-323.49337945,0.00022738,4]
[346111830,1734708644864,-500.0,0.00022738,4]
[346111831,1734708644874,-500.0,0.00022738,4]
[346111832,1734708644885,-500.0,0.00022738,4]
[346111833,1734708644895,-500.0,0.00022738,4]
[346111834,1734708644906,-500.0,0.00022738,4]
[346111835,1734708644916,-500.0,0.00022738,4]
[346111836,1734708644927,-500.0,0.00022738,4]
[346111837,1734708644937,-500.0,0.00022738,4]
[346111838,1734708644947,-500.0,0.00022738,4]
[346111839,1734708644958,-500.0,0.00022738,4]
[346111840,1734708644969,-500.0,0.00022738,4]
[346111841,1734708644980,-500.0,0.00022738,4]
[346111842,1734708644990,-500.0,0.00022738,4]
[346111843,1734708645001,-500.0,0.00022738,4]
[346111844,1734708645011,-500.0,0.00022738,4]
[346111845,1734708645022,-500.0,0.00022738,4]
[346111846,1734708645032,-500.0,0.00022738,4]
[346111847,1734708645042,-500.0,0.00022738,4]
[346111848,1734708645054,-613.58,0.00022738,4]
[346111849,1734708645065,-499.6710183,0.00022738,4]
[346111850,1734708645076,-500.0,0.00022738,4]
[346111851,1734708645086,-500.0,0.00022738,4]
[346111852,1734708645096,-500.0,0.00022738,4]
[346111853,1734708645108,-500.0,0.00022738,4]
[346111854,1734708645118,-500.0,0.00022738,4]
[346111855,1734708645129,-500.0,0.00022738,4]
[346111856,1734708645139,-500.0,0.00022738,4]
[346111857,1734708645149,-500.0,0.00022738,4]
[346111858,1734708645160,-500.0,0.00022738,4]
[346111859,1734708645171,-500.0,0.00022738,4]
[346111860,1734708645182,-156.913729,0.00022738,4]
[346111861,1734708645192,-500.0,0.00022738,4]
[346111862,1734708645203,-500.0,0.00022738,4]
[346111863,1734708645214,-500.0,0.00022738,4]
[346111864,1734708645224,-500.0,0.00022738,4]
[346111865,1734708645234,-500.0,0.00022738,4]
[346111866,1734708645245,-500.0,0.00022738,4]
[346111867,1734708645255,-500.0,0.00022738,4]
[346111868,1734708645265,-500.0,0.00022738,4]
[346111869,1734708645275,-254.80161388,0.00022738,4]
[346111870,1734708645286,-500.0,0.00022738,4]
[346111871,1734708645296,-566.84951445,0.00022738,4]
[346111872,1734708645309,-500.0,0.00022738,4]
[346111873,1734708645319,-500.0,0.00022738,4]
[346111874,1734708645330,-500.0,0.00022738,4]
[346111875,1734708645340,-500.0,0.00022738,4]
[346111876,1734708645351,-500.0,0.00022738,4]
[346111877,1734708645361,-500.0,0.00022738,4]
[346111878,1734708645377,-500.0,0.00022738,4]
[346111879,1734708645387,-500.0,0.00022738,4]
[346111880,1734708645398,-500.0,0.00022738,4]
[346111881,1734708645408,-582.29,0.00022738,4]
[346111882,1734708645419,-511.78,0.00022738,4]
[346111883,1734708645431,-800.89,0.00022738,4]
[346111884,1734708645443,-500.0,0.00022738,4]
[346111885,1734708645452,-751.77,0.00022738,4]
[346111886,1734708645463,-500.0,0.00022738,4]
[346111887,1734708645472,-1476.34,0.00022738,4]
[346111888,1734708645483,-500.0,0.00022738,4]
[346111889,1734708645494,-500.0,0.00022738,4]
[346111890,1734708645504,-994.91,0.00022738,4]
[346111891,1734708645514,-218.67333692,0.00022738,4]
[346111892,1734708645525,-500.0,0.00022738,4]
[346111893,1734708645536,-500.0,0.00022738,4]
[346111894,1734708645546,-500.0,0.00022738,4]
[346111895,1734708645558,-820.85,0.00022738,4]
[346111896,1734708645568,-1568.07,0.00022738,4]
[346111897,1734708645579,-514.24,0.00022738,4]
[346111898,1734708645590,-500.0,0.00022738,4]
[346111899,1734708645601,-821.18,0.00022738,4]
[346111900,1734708645611,-500.0,0.00022738,4]
[346111901,1734708645621,-500.0,0.00022738,4]
[346111902,1734708645630,-500.0,0.00022738,4]
[346111903,1734708645641,-500.0,0.00022738,4]
[346111904,1734708645651,-568.89,0.00022738,4]
[346111905,1734708645662,-500.0,0.00022738,4]
[346111906,1734708645673,-500.0,0.00022738,4]
[346111907,1734708645683,-500.0,0.00022738,4]
[346111908,1734708645693,-685.14,0.00022738,4]
[346111909,1734708645704,-507.43,0.00022738,4]
[346111910,1734708645714,-864.14,0.00022738,4]
[346111911,1734708645725,-500.0,0.00022738,4]
[346111912,1734708645735,-500.0,0.00022738,4]
[346111913,1734708645745,-765.98,0.00022738,4]
[346111914,1734708645756,-500.0,0.00022738,4]
[346111915,1734708645767,-1025.07,0.00022738,4]
[346111916,1734708645778,-728.54,0.00022738,4]
[346111918,1734708645789,-500.0,0.00022738,4]
[346111920,1734708645799,-500.0,0.00022738,4]
[346111921,1734708645814,-508.74,0.00022738,4]
[346111922,1734708645825,-500.0,0.00022738,4]
[346111923,1734708645835,-3628.92,0.00022738,4]
[346111924,1734708645846,-832.7,0.00022738,4]
[346111925,1734708645856,-500.0,0.00022738,4]
[346111927,1734708645867,-500.0,0.00022738,4]
[346111928,1734708645878,-500.0,0.00022738,4]
[346111929,1734708645889,-1222.31,0.00022738,4]
[346111930,1734708645900,-500.0,0.00022738,4]
[346111931,1734708645913,-500.0,0.00022738,4]
[346111932,1734708645923,-1245.95,0.00022738,4]
[346111933,1734708645934,-601.16,0.00022738,4]
[346111934,1734708646270,-500.0,0.00022738,4]
[346111935,1734708646292,-500.0,0.00022738,4]
[346111936,1734708646310,-997.76,0.00022738,4]
[346111937,1734708646322,-500.0,0.00022738,4]
[346111938,1734708646331,-4338.76,0.00022738,4]
[346111939,1734708646341,-500.0,0.00022738,4]
[346111940,1734708646351,-500.0,0.00022738,4]
[346111941,1734708646364,-500.0,0.00022738,4]
[346111942,1734708646374,-500.0,0.00022738,4]
[346111943,1734708646384,-602.56,0.00022738,4]
[346111944,1734708646393,-500.0,0.00022738,4]
[346111945,1734708646405,-4322.79,0.00022738,4]
[346111946,1734708646415,-643.35,0.00022738,4]
[346111947,1734708646424,-757.49,0.00022738,4]
[346111948,1734708646433,-926.41,0.00022738,4]
[346111949,1734708646443,-500.0,0.00022738,4]
[346111950,1734708646453,-1635.36,0.00022738,4]
[346111951,1734708646463,-500.0,0.00022738,4]
[346111952,1734708646472,-764.22,0.00022738,4]
[346111953,1734708646482,-500.0,0.00022738,4]
[346111954,1734708646495,-500.0,0.00022738,4]
[346111955,1734708646505,-500.0,0.00022738,4]
[346111956,1734708646514,-500.0,0.00022738,4]
[346111957,1734708646524,-1000.0,0.00022738,4]
[346111958,1734708646534,-517.74,0.00022738,4]
[346111959,1734708646544,-1796.74,0.00022738,4]
[346111960,1734708646555,-500.0,0.00022738,4]
[346111961,1734708646565,-500.0,0.00022738,4]
[346111962,1734708646575,-2191.15,0.00022738,4]
[346111963,1734708646584,-500.0,0.00022738,4]
[346111965,1734708646594,-1575.91,0.00022738,4]
[346111967,1734708646603,-500.0,0.00022738,4]
[346111969,1734708646612,-1376.54,0.00022738,4]
[346111971,1734708646625,-708.87,0.00022738,4]
[346111973,1734708646635,-500.0,0.00022738,4]
[346111974,1734708646644,-500.0,0.00022738,4]
[346111975,1734708646654,-500.0,0.00022738,4]
[346111976,1734708646663,-523.07,0.00022738,4]
[346111977,1734708646672,-500.0,0.00022738,4]
[346111978,1734708646682,-1072.88,0.00022738,4]
[346111979,1734708646692,-500.0,0.00022738,4]
[346111980,1734708646701,-500.0,0.00022738,4]
[346111981,1734708646710,-500.0,0.00022738,4]
[346111982,1734708646720,-744.56,0.00022738,4]
[346111983,1734708646729,-500.0,0.00022738,4]
[346111984,1734708646739,-500.0,0.00022738,4]
[346111985,1734708646748,-519.52,0.00022738,4]
[346111986,1734708646763,-500.0,0.00022738,4]
[346111987,1734708646772,-546.74,0.00022738,4]
[346111988,1734708646782,-784.97,0.00022738,4]
[346111989,1734708646792,-500.0,0.00022738,4]
[346111990,1734708646802,-610.51,0.00022738,4]
[346111991,1734708646814,-500.0,0.00022739,4]
[346111992,1734708646823,-500.0,0.00022739,4]
[346111993,1734708646833,-500.0,0.00022739,4]
[346111994,1734708646842,-500.0,0.00022739,4]
[346111995,1734708646852,-500.0,0.00022739,4]
[346111996,1734708646861,-500.0,0.00022739,4]
[346111997,1734708646871,-500.0,0.00022739,4]
[346111998,1734708646880,-500.0,0.00022739,4]
[346111999,1734708646890,-500.0,0.00022739,4]
[346112000,1734708646899,-500.0,0.00022739,4]
[346112001,1734708646908,-500.0,0.00022739,4]
[346112002,1734708646918,-500.0,0.00022739,4]
[346112003,1734708646928,-500.0,0.00022739,4]
[346112004,1734708646937,-500.0,0.00022739,4]
[346112005,1734708646946,-540.95,0.00022739,4]
[346112006,1734708646955,-500.0,0.00022739,4]
[346112007,1734708646964,-500.0,0.00022739,4]
[346112008,1734708646973,-500.0,0.00022739,4]
[346112009,1734708646982,-500.0,0.00022739,4]
[346112010,1734708646992,-500.0,0.00022739,4]
[346112011,1734708647001,-500.0,0.00022739,4]
[346112012,1734708647010,-506.5,0.00022739,4]
[346112013,1734708647020,-500.0,0.00022739,2]
[346112014,1734708647029,-500.0,0.00022739,4]
[346112015,1734708647038,-500.0,0.00022739,4]
[346112016,1734708647047,-500.0,0.00022739,4]
[346112017,1734708647060,-500.0,0.00022739,4]
[346112018,1734708647070,-500.0,0.00022739,4]
[346112019,1734708647079,-500.0,0.00022739,4]
[346112020,1734708647088,-500.0,0.00022739,4]
[346112021,1734708647098,-500.0,0.00022739,4]
[346112022,1734708647107,-500.0,0.00022739,4]
[346112023,1734708647116,-500.0,0.00022739,4]
[346112024,1734708647125,-500.0,0.00022739,4]
[346112025,1734708647134,-500.0,0.00022739,4]
[346112026,1734708647143,-500.0,0.00022739,4]
[346112027,1734708647152,-500.0,0.00022739,4]
[346112028,1734708647161,-500.0,0.00022739,4]
[346112029,1734708647170,-500.0,0.00022739,4]